bitfinex-derivatives/quotes_SOLF0:USTF0_20240918
["timestamp","ask_amount","ask_price","bid_price","bid_amount"]
[1726673167110,3.9223,127.49,127.46,3.9229]
[1726673168606,3.9218,127.5,127.47,3.9226]
[1726673168808,15.89577426,127.51,127.44,15.09]
[1726673169011,30.98577426,127.52,127.44,15.09]
[1726673169410,3.922,127.5,127.44,15.09]
[1726673169607,4.4058,127.53,127.47,15.09]
[1726673171022,15.09,127.52,127.45,15.09]
[1726673171317,3.9219,127.5,127.46,3.9228]
[1726673171512,15.09,127.52,127.45,15.09]
[1726673171909,3.9215,127.51,127.47,3.9226]
[1726673172310,3.9212,127.52,127.48,3.9221]
[1726673172715,4.4058,127.53,127.47,15.09]
[1726673173620,1.4722,127.53,127.47,15.09]
[1726673174916,3.9211,127.52,127.47,15.09]
[1726673175321,3.9211,127.52,127.48,3.922]
[1726673175514,3.9211,127.52,127.47,15.09]
[1726673176422,3.9216,127.51,127.45,15.09]
[1726673176820,3.9216,127.51,127.47,3.9225]
[1726673178126,3.9213,127.52,127.48,3.9223]
[1726673179524,19.10681439,127.56,127.47,15.09]
[1726673179721,19.10681439,127.56,127.47,16.4927]
[1726673179921,15.89598733,127.55,127.5,3.9217]
[1726673180124,3.9206,127.54,127.5,3.9217]
[1726673180527,3.97567225,127.55,127.5,3.9217]
[1726673180723,3.921,127.53,127.49,3.9219]
[1726673181433,3.921,127.53,127.5,3.9217]
[1726673181630,3.9206,127.54,127.49,15.09]
[1726673182027,3.9206,127.54,127.51,9.65]
[1726673182223,9.65,127.53,127.47,1.4027]
[1726673182430,9.65,127.53,127.48,13.5722]
[1726673182728,3.86655616,127.54,127.49,9.65]
[1726673182931,9.65,127.54,127.49,9.65]
[1726673183428,3.921,127.53,127.49,13.5719]
[1726673184428,3.921,127.53,127.5,3.9217]
[1726673186027,3.9211,127.52,127.5,3.9217]
[1726673186233,3.9211,127.52,127.49,13.5719]
[1726673187432,13.5613016,127.54,127.49,9.65]
[1726673187931,3.9212,127.52,127.49,13.5719]
[1726673188135,9.65,127.5,127.46,3.0212]
[1726673188335,15.88881631,127.53,127.45,3.9232]
[1726673188336,9.65,127.49,127.45,3.9232]
[1726673189041,3.9225,127.48,127.46,9.65]
[1726673189936,3.9225,127.48,127.45,13.5732]
[1726673190238,3.9225,127.48,127.46,3.9229]
[1726673191135,9.65,127.49,127.45,3.9231]
[1726673191338,3.89246467,127.51,127.43,9.65]
[1726673191636,3.9228,127.47,127.43,9.65]
[1726673191842,3.9228,127.47,127.44,3.9234]
[1726673192139,3.923,127.46,127.43,9.65]
[1726673192341,3.923,127.46,127.43,13.5737]
[1726673193535,3.9238,127.44,127.41,6.9725]
[1726673193738,9.65,127.47,127.42,9.65]
[1726673194145,3.9235,127.45,127.42,13.5741]
[1726673195143,3.9235,127.45,127.43,9.65]
[1726673195334,13.51856155,127.47,127.43,9.65]
[1726673195733,3.9236,127.45,127.43,9.65]
[1726673197545,13.51856155,127.47,127.43,9.65]
[1726673198243,3.9236,127.44,127.43,9.65]
[1726673199447,3.924,127.43,127.42,9.65]
[1726673199949,3.9237,127.44,127.42,9.65]
[1726673200150,9.65,127.46,127.42,9.65]
[1726673200340,9.65,127.45,127.4,13.5746]
[1726673200648,3.9244,127.42,127.4,9.65]
[1726673201459,3.9245,127.41,127.39,9.65]
[1726673201943,9.65,127.43,127.39,9.65]
[1726673202344,9.65,127.42,127.37,9.65]
[1726673202539,3.9254,127.38,127.36,9.65]
[1726673202744,9.65,127.39,127.32,2.9326]
[1726673202944,3.9256,127.38,127.36,9.65]
[1726673207346,3.9257,127.37,127.36,9.65]
[1726673208152,3.9263,127.35,127.32,2.9326]
[1726673208353,9.65,127.39,127.34,9.65]
[1726673208854,3.9263,127.36,127.34,9.65]
[1726673209751,9.65,127.39,127.34,9.65]
[1726673209954,9.65,127.39,127.31,1.5542]
[1726673210152,9.65,127.39,127.34,9.65]
[1726673210354,3.9262,127.36,127.34,9.65]
[1726673210549,3.9262,127.36,127.35,9.65]
[1726673210952,3.9259,127.37,127.35,9.65]
[1726673211752,3.926,127.36,127.35,9.65]
[1726673212354,15.01396569,127.4,127.34,3.9266]
[1726673212653,9.65,127.39,127.35,9.65]
[1726673213050,3.926,127.36,127.35,9.65]
[1726673213454,3.926,127.36,127.33,3.9267]
[1726673213654,9.65,127.39,127.34,9.65]
[1726673214345,3.9262,127.36,127.34,13.5766]
[1726673214756,3.9262,127.36,127.34,9.65]
[1726673214957,3.9259,127.37,127.34,9.65]
[1726673215353,3.9259,127.37,127.35,9.65]
[1726673215551,3.9255,127.38,127.35,9.65]
[1726673215755,2.9638,127.41,127.37,9.65]
[1726673215951,9.65,127.45,127.39,9.65]
[1726673216152,3.9242,127.42,127.39,9.65]
[1726673216754,3.924,127.43,127.4,9.65]
[1726673216969,3.90451866,127.45,127.41,9.65]
[1726673217451,3.9241,127.43,127.41,9.65]
[1726673218052,3.9242,127.42,127.39,3.9251]
[1726673218255,3.9242,127.42,127.4,9.65]
[1726673220558,9.65,127.44,127.39,9.65]
[1726673221256,337.0,127.43,127.25,7.8584]
[1726673221458,9.65,127.39,127.34,9.65]
[1726673221859,4.0217562,127.38,127.34,9.65]
[1726673222457,3.9258,127.37,127.34,9.65]
[1726673222663,9.65,127.39,127.34,9.65]
[1726673223057,13.65621636,127.39,127.34,9.65]
[1726673224163,13.65621636,127.39,127.33,9.65]
[1726673224164,3.9263,127.35,127.33,9.65]
[1726673225861,3.9261,127.36,127.33,13.5769]
[1726673226462,3.9264,127.35,127.33,9.65]
[1726673229963,3.9264,127.35,127.33,13.5769]
[1726673230361,3.9264,127.35,127.33,9.65]
[1726673233172,3.9264,127.35,127.32,13.5771]
[1726673235981,3.9267,127.34,127.32,9.65]
[1726673236173,9.65,127.37,127.32,9.65]
[1726673236377,9.65,127.37,127.33,9.65]
[1726673236574,9.65,127.37,127.33,13.5769]
[1726673236776,9.65,127.38,127.34,9.65]
[1726673237278,3.9262,127.36,127.34,13.5766]
[1726673237572,9.65,127.38,127.34,9.65]
[1726673237778,3.9263,127.35,127.33,13.5768]
[1726673240975,3.9263,127.35,127.33,3.9268]
[1726673241174,3.9262,127.36,127.33,3.9268]
[1726673241981,3.9262,127.36,127.32,9.65]
[1726673242177,3.9263,127.35,127.32,9.65]
[1726673243877,3.9263,127.35,127.33,3.9268]
[1726673245781,3.9268,127.34,127.31,3.9274]
[1726673246684,3.9268,127.34,127.31,13.5774]
[1726673246872,3.9268,127.34,127.31,3.9274]
[1726673247278,3.927,127.33,127.3,3.9277]
[1726673247588,9.65,127.33,127.28,9.65]
[1726673248181,13.5771,127.33,127.3,3.9277]
[1726673249479,13.5771,127.33,127.31,3.9276]
[1726673249783,3.9267,127.34,127.31,13.5776]
[1726673254082,3.9277,127.31,127.28,3.9283]
[1726673254489,3.9277,127.31,127.28,13.5783]
[1726673255284,1.481,127.35,127.24,2.834]
[1726673255490,9.65,127.27,127.24,2.834]
[1726673255686,1.556,127.31,127.23,9.67]
[1726673255687,3.93522565,127.29,127.23,13.5998]
[1726673255989,9.65,127.27,127.23,13.5998]
[1726673256496,1.556,127.31,127.23,0.02]
[1726673256789,13.5796,127.25,127.23,0.02]
[1726673257693,3.9296,127.25,127.23,9.67]
[1726673257893,3.9296,127.25,127.23,0.02]
[1726673258107,5.4849362,127.31,127.24,9.65]
[1726673258303,9.65,127.28,127.24,9.65]
[1726673258503,9.65,127.25,127.23,0.02]
[1726673258706,3.9297,127.24,127.23,0.02]
[1726673258907,13.5797,127.24,127.23,0.02]
[1726673259402,3.9297,127.24,127.23,0.02]
[1726673260597,1.556,127.31,127.23,9.67]
[1726673260798,9.65,127.3,127.24,9.65]
[1726673261011,3.9285,127.28,127.25,3.9293]
[1726673261310,3.9285,127.28,127.26,9.65]
[1726673261706,1.556,127.31,127.26,13.5791]
[1726673262003,11.206,127.31,127.26,13.5791]
[1726673262209,1.556,127.31,127.27,3.9288]
[1726673262610,5.34793532,127.32,127.23,0.02]
[1726673262611,1.5016,127.32,127.26,15.09]
[1726673263412,173.771,127.35,127.26,15.09]
[1726673263907,3.9276,127.31,127.28,3.9283]
[1726673264105,16.571,127.35,127.26,15.09]
[1726673264505,3.9272,127.33,127.29,3.928]
[1726673264708,3.9272,127.33,127.28,15.09]
[1726673265100,3.9272,127.33,127.3,3.9277]
[1726673265705,3.9268,127.34,127.28,15.09]
[1726673265907,1.4039,127.37,127.32,15.09]
[1726673266211,1.4039,127.37,127.33,3.9268]
[1726673266212,5.3299,127.37,127.33,3.9268]
[1726673266512,5.3299,127.37,127.32,15.09]
[1726673266901,354.9928,127.41,127.32,15.09]
[1726673267106,1.5134,127.4,127.32,15.09]
[1726673267410,3.93713237,127.39,127.32,15.09]
[1726673267603,3.9256,127.38,127.34,3.9265]
[1726673267805,3.93713237,127.39,127.29,1.5561]
[1726673267806,32.06442117,127.39,127.29,1.5561]
[1726673268008,3.9265,127.35,127.31,3.9273]
[1726673268412,15.09,127.37,127.29,16.6461]
[1726673268613,15.09,127.37,127.27,16.5855]
[1726673268908,15.09,127.37,127.29,15.09]
[1726673269109,15.09,127.37,127.32,3.9272]
[1726673269110,3.9266,127.35,127.32,3.9272]
[1726673270018,15.09,127.37,127.33,3.9269]
[1726673270209,19.0809688,127.39,127.33,3.9269]
[1726673270409,15.09,127.39,127.33,3.9269]
[1726673270612,3.926,127.37,127.3,15.09]
[1726673271314,3.926,127.37,127.33,3.9268]
[1726673271816,3.926,127.36,127.33,3.9268]
[1726673272014,3.926,127.36,127.32,3.927]
[1726673272812,3.926,127.36,127.33,3.9269]
[1726673274321,3.9258,127.37,127.34,3.9266]
[1726673275011,3.9261,127.36,127.3,15.09]
[1726673275411,15.09,127.37,127.29,15.09]
[1726673275617,3.9263,127.35,127.29,15.09]
[1726673275910,15.09,127.37,127.29,15.09]
[1726673276111,3.9263,127.36,127.32,3.927]
[1726673276516,3.9263,127.36,127.31,15.09]
[1726673276913,3.9263,127.36,127.33,3.9268]
[1726673279222,19.01203096,127.39,127.35,3.9263]
[1726673279725,3.92203096,127.39,127.33,15.09]
[1726673280221,3.9256,127.38,127.35,3.9261]
[1726673280620,3.926,127.36,127.34,3.9265]
[1726673280820,3.92203096,127.39,127.34,3.9265]
[1726673281017,3.92203096,127.39,127.33,15.09]
[1726673281222,15.09,127.37,127.27,1.4955]
[1726673281526,15.09,127.37,127.29,15.09]
[1726673281726,3.9269,127.34,127.31,3.9274]
[1726673281928,3.9269,127.34,127.29,15.09]
[1726673282427,3.9265,127.35,127.32,3.9271]
[1726673282621,15.09,127.37,127.29,15.09]
[1726673282823,3.9262,127.36,127.33,3.9268]
[1726673283028,19.02516754,127.39,127.3,15.09]
[1726673283226,3.9256,127.38,127.35,3.9261]
[1726673283418,20.50909504,127.4,127.35,3.9261]
[1726673283821,3.9257,127.38,127.35,3.9261]
[1726673284923,337.0,127.44,127.35,15.09]
[1726673285126,3.94223968,127.44,127.37,15.09]
[1726673285331,3.94223968,127.44,127.42,3.924]
[1726673285722,3.9235,127.45,127.42,3.924]
[1726673286229,3.9236,127.44,127.41,3.9243]
[1726673286823,19.02948919,127.47,127.38,2.9332]
[1726673287023,15.09,127.45,127.38,2.9332]
[1726673287223,1.4666,127.49,127.38,1.418]
[1726673287224,15.09,127.43,127.38,1.418]
[1726673287424,19.06558206,127.43,127.35,15.09]
[1726673287725,19.06558206,127.43,127.33,15.09]
[1726673287926,1.4493,127.42,127.33,15.09]
[1726673288334,1.4493,127.42,127.35,15.09]
[1726673288828,5.3737,127.42,127.39,3.9251]
[1726673289131,1.4493,127.42,127.35,15.09]
[1726673289633,3.9247,127.41,127.37,3.9257]
[1726673290231,3.9247,127.41,127.35,15.09]
[1726673290930,3.9247,127.41,127.38,3.9252]
[1726673291318,3.9247,127.41,127.35,15.09]
[1726673291523,1.4493,127.42,127.35,15.09]
[1726673291926,1.4493,127.42,127.38,3.9254]
[1726673292232,3.9247,127.41,127.38,3.9254]
[1726673293534,5.53555171,127.44,127.37,15.09]
[1726673293934,1.4062,127.45,127.39,15.09]
[1726673294139,3.9238,127.44,127.39,15.09]
[1726673294830,3.9238,127.44,127.41,3.9244]
[1726673295733,1.4062,127.45,127.41,3.9244]
[1726673295936,1.4062,127.45,127.39,15.09]
[1726673296634,3.9239,127.43,127.4,3.9246]
[1726673297536,3.9237,127.44,127.41,3.9244]
[1726673297735,1.4062,127.45,127.41,3.9244]
[1726673297936,3.91861104,127.46,127.39,15.09]
[1726673298125,3.9235,127.45,127.39,15.09]
[1726673298429,3.91861104,127.46,127.39,15.09]
[1726673298634,3.9238,127.44,127.41,3.9243]
[1726673300036,3.9236,127.45,127.41,19.0143]
[1726673300238,1.4975,127.47,127.41,19.0143]
[1726673300738,3.95028502,127.46,127.41,19.0143]
[1726673301137,3.9237,127.44,127.41,3.9243]
[1726673301333,3.9237,127.44,127.4,3.9247]
[1726673301532,3.95028502,127.46,127.4,3.9247]
[1726673302234,3.9239,127.43,127.4,3.9247]
[1726673302733,3.9236,127.44,127.41,3.9244]
[1726673303339,3.9233,127.45,127.39,15.09]
[1726673303739,3.95028502,127.46,127.41,3.9243]
[1726673304336,3.9238,127.44,127.4,3.9246]
[1726673304939,3.95028502,127.46,127.39,19.015]
[1726673305141,15.09,127.46,127.39,19.015]
[1726673305340,3.9242,127.43,127.39,19.015]
[1726673305535,3.9242,127.43,127.4,3.9246]
[1726673306239,3.9237,127.44,127.41,3.9244]
[1726673306542,19.09840402,127.46,127.39,15.09]
[1726673306745,3.9236,127.44,127.4,3.9246]
[1726673306936,3.9236,127.44,127.39,15.09]
[1726673307137,3.9236,127.44,127.4,3.9246]
[1726673307837,3.9236,127.44,127.41,3.9245]
[1726673308338,3.9234,127.45,127.42,3.9242]
[1726673308545,4.00840402,127.46,127.42,3.9242]
[1726673309041,3.9237,127.44,127.41,3.9244]
[1726673309741,3.924,127.43,127.4,3.9246]
[1726673312043,3.924,127.43,127.41,3.9244]
[1726673312443,3.9237,127.44,127.41,3.9244]
[1726673312644,3.9237,127.44,127.42,3.9241]
[1726673312840,1.4975,127.47,127.41,15.09]
[1726673313047,3.9235,127.45,127.41,15.09]
[1726673313343,3.9235,127.45,127.42,3.924]
[1726673313546,3.9235,127.45,127.41,15.09]
[1726673313748,3.9235,127.45,127.42,3.924]
[1726673314645,3.9236,127.44,127.42,3.924]
[1726673314840,5.47999057,127.47,127.41,15.09]
[1726673315249,3.9235,127.45,127.42,3.924]
[1726673315540,5.47999057,127.47,127.42,3.924]
[1726673315744,337.0,127.54,127.43,15.09]
[1726673315944,15.09,127.53,127.45,15.09]
[1726673316739,1.5407,127.54,127.45,15.09]
[1726673316945,1.5407,127.54,127.47,15.09]
[1726673317141,3.9214,127.52,127.49,3.9218]
[1726673317849,1.5407,127.54,127.47,15.09]
[1726673318149,15.09,127.53,127.45,15.09]
[1726673318349,3.9221,127.49,127.45,15.09]
[1726673318555,15.09,127.53,127.45,15.09]
[1726673318845,3.9219,127.5,127.47,3.9225]
[1726673319050,15.09,127.53,127.45,15.09]
[1726673319450,15.09,127.51,127.43,15.09]
[1726673319646,1.4113,127.5,127.43,15.09]
[1726673319839,3.9225,127.48,127.45,3.9231]
[1726673320044,1.4113,127.5,127.43,15.09]
[1726673320254,1.4113,127.5,127.45,15.09]
[1726673320452,3.9221,127.49,127.46,3.9228]
[1726673320850,3.95392023,127.49,127.43,15.09]
[1726673321152,3.9226,127.48,127.43,15.09]
[1726673321758,3.9226,127.48,127.45,3.9231]
[1726673322343,3.9226,127.48,127.45,19.0131]
[1726673322541,3.9223,127.49,127.46,3.9228]
[1726673322942,3.9223,127.49,127.45,15.09]
[1726673323248,353.6334,127.55,127.47,19.0126]
[1726673323448,3.0706,127.54,127.47,19.0126]
[1726673323648,3.9219,127.5,127.47,19.0126]
[1726673326150,3.922,127.49,127.47,19.0126]
[1726673327062,3.9218,127.5,127.47,19.0126]
[1726673328053,3.9218,127.5,127.47,15.09]
[1726673328253,3.9215,127.51,127.49,15.09]
[1726673328553,3.9215,127.51,127.49,19.0119]
[1726673328858,3.0706,127.54,127.49,19.0119]
[1726673329157,3.9213,127.52,127.49,15.09]
[1726673329363,3.9213,127.52,127.5,3.9217]
[1726673329661,3.9213,127.52,127.49,15.09]
[1726673329863,3.9213,127.52,127.49,19.0119]
[1726673330161,3.9213,127.52,127.49,15.09]
[1726673330364,3.9209,127.53,127.5,19.0116]
[1726673330957,3.9212,127.52,127.5,19.0116]
[1726673331662,3.9209,127.53,127.5,19.0116]
[1726673333866,3.9209,127.53,127.51,3.9213]
[1726673337366,1.5434,127.55,127.47,15.09]
[1726673337566,16.6334,127.55,127.47,15.09]
[1726673338071,16.6334,127.55,127.48,3.9222]
[1726673338370,16.6334,127.55,127.49,3.922]
[1726673338574,1.5434,127.55,127.48,15.09]
[1726673338774,1.5434,127.55,127.5,15.09]
[1726673339072,337.0,127.56,127.52,15.09]
[1726673339468,3.9206,127.54,127.52,19.011]
[1726673339672,3.9206,127.54,127.52,15.09]
[1726673340372,337.0,127.56,127.48,15.09]
[1726673340772,337.0,127.56,127.5,3.9217]
[1726673341777,3.921,127.53,127.5,3.9217]
[1726673342271,3.921,127.53,127.51,3.9214]
[1726673342476,3.921,127.53,127.5,15.09]
[1726673342873,3.9212,127.52,127.49,15.09]
[1726673343273,3.9212,127.52,127.5,3.9217]
[1726673343872,3.9209,127.53,127.51,3.9214]
[1726673344277,2.8841,127.57,127.51,3.9214]
[1726673344473,2.8841,127.57,127.46,4.4415]
[1726673344474,2.8841,127.57,127.49,15.09]
[1726673344776,33.83350575,127.57,127.47,15.09]
[1726673344978,17.9741,127.57,127.47,15.09]
[1726673345378,15.85819975,127.56,127.47,15.09]
[1726673345769,3.9217,127.5,127.47,19.0126]
[1726673345970,3.93131868,127.51,127.47,15.09]
[1726673346176,1.4104,127.54,127.47,15.09]
[1726673346374,15.09,127.53,127.45,15.09]
[1726673346581,1.5496,127.52,127.45,15.09]
[1726673346780,18.116,127.52,127.45,15.09]
[1726673347080,3.9228,127.47,127.44,3.9234]
[1726673347475,304.37149199,127.52,127.44,3.9234]
[1726673347689,319.46149199,127.52,127.44,3.9234]
[1726673348076,3.9226,127.48,127.44,3.9234]
[1726673349884,3.9226,127.48,127.45,19.0132]
[1726673350583,3.9221,127.49,127.45,19.0132]
[1726673350783,3.9221,127.49,127.46,3.9229]
[1726673351681,304.37149199,127.52,127.48,15.09]
[1726673352184,308.29269199,127.52,127.48,15.09]
[1726673352481,3.9212,127.52,127.5,15.09]
[1726673352783,3.9209,127.53,127.5,15.09]
[1726673353178,3.9208,127.54,127.51,3.9214]
[1726673353380,15.86895299,127.56,127.5,15.09]
[1726673353888,3.921,127.53,127.5,19.0115]
[1726673356086,20.48955299,127.57,127.42,4.4965]
[1726673356087,16.98861076,127.56,127.42,4.4965]
[1726673356288,15.86895299,127.55,127.48,15.09]
[1726673356683,15.86895299,127.55,127.47,15.09]
[1726673356988,15.09,127.54,127.47,15.09]
[1726673357386,47.94756375,127.54,127.47,15.09]
[1726673357586,32.85756375,127.53,127.47,15.09]
[1726673357890,15.86895299,127.52,127.47,15.09]
[1726673358090,3.98673573,127.51,127.47,15.09]
[1726673358793,3.9223,127.48,127.47,15.09]
[1726673360388,15.87466489,127.53,127.47,19.0125]
[1726673360588,15.87466489,127.53,127.47,15.09]
[1726673360789,32.86577469,127.55,127.47,15.09]
[1726673360990,3.9221,127.49,127.47,15.09]
[1726673361487,3.9223,127.48,127.47,15.09]
[1726673362087,3.9226,127.47,127.45,15.09]
[1726673362395,3.9226,127.47,127.44,3.9233]
[1726673362691,3.97158568,127.49,127.42,4.4965]
[1726673362888,15.09,127.48,127.4,15.09]
[1726673363094,3.91505624,127.47,127.4,15.09]
[1726673363283,3.9241,127.43,127.4,19.0146]
[1726673363795,3.9241,127.43,127.41,3.9245]
[1726673364593,3.9237,127.44,127.41,3.9245]
[1726673365294,3.9239,127.43,127.41,3.9245]
[1726673365494,15.09,127.48,127.4,19.0146]
[1726673365797,18.98351342,127.48,127.4,19.0146]
[1726673365998,3.924,127.43,127.4,15.09]
[1726673366596,3.924,127.43,127.4,19.0146]
[1726673366786,15.09,127.45,127.38,15.09]
[1726673367395,3.925,127.4,127.38,15.09]
[1726673368394,3.9246,127.41,127.38,19.0153]
[1726673368599,3.9246,127.41,127.38,15.09]
[1726673368799,320.91769199,127.46,127.39,3.9251]
[1726673368993,3.9244,127.42,127.39,3.9251]
[1726673370489,3.9245,127.41,127.39,3.9251]
[1726673370690,15.87281599,127.45,127.39,3.9251]
[1726673371898,15.87281599,127.45,127.38,15.09]
[1726673372396,15.87281599,127.45,127.4,15.09]
[1726673372791,305.91609199,127.47,127.4,15.09]
[1726673372994,3.9235,127.45,127.42,3.924]
[1726673373295,3.89351342,127.48,127.42,15.09]
[1726673373499,3.9231,127.46,127.42,15.09]
[1726673375094,3.9231,127.46,127.43,3.9236]
[1726673376100,4.00510604,127.48,127.42,19.0139]
[1726673376402,15.88174189,127.49,127.42,19.0139]
[1726673376795,21.97302952,127.5,127.42,19.0139]
[1726673376990,15.88200023,127.49,127.42,19.0139]
[1726673377198,3.9234,127.45,127.42,19.0139]
[1726673378901,3.9231,127.46,127.43,3.9238]
[1726673379202,15.88200023,127.49,127.43,3.9238]
[1726673379693,3.9232,127.46,127.43,3.9238]
[1726673385516,3.9232,127.46,127.44,3.9235]
[1726673385810,3.9232,127.46,127.42,15.09]
[1726673386213,3.9232,127.46,127.43,3.9236]
[1726673389915,3.9232,127.46,127.44,9.65]
[1726673390117,3.9232,127.46,127.44,13.5736]
[1726673392614,9.65,127.48,127.44,13.5736]
[1726673393407,15.88200023,127.49,127.45,9.65]
[1726673393408,25.53200023,127.49,127.45,9.65]
[1726673393614,25.53200023,127.49,127.45,13.5731]
[1726673393808,3.99842952,127.5,127.47,9.65]
[1726673394013,3.922,127.5,127.47,9.65]
[1726673394209,3.922,127.5,127.49,9.65]
[1726673394413,305.80559199,127.55,127.49,9.65]
[1726673394414,15.90825181,127.54,127.49,9.65]
[1726673394713,9.65,127.52,127.47,9.65]
[1726673395118,3.9222,127.49,127.48,9.65]
[1726673395312,13.55734197,127.51,127.46,9.65]
[1726673395516,9.65,127.51,127.46,9.65]
[1726673395716,3.9222,127.49,127.46,13.5729]
[1726673399016,3.9219,127.5,127.47,3.9226]
[1726673399520,9.65,127.51,127.47,3.9226]
[1726673399919,3.9218,127.5,127.47,3.9226]
[1726673400119,9.65,127.5,127.46,13.5728]
[1726673400316,9.65,127.49,127.44,4.552]
[1726673400524,9.65,127.5,127.45,9.65]
[1726673400915,9.65,127.5,127.46,3.9229]
[1726673402020,3.9225,127.48,127.45,13.5732]
[1726673402217,3.86913173,127.51,127.44,14.202]
[1726673402416,9.65,127.51,127.46,9.65]
[1726673402723,3.9219,127.5,127.49,9.65]
[1726673402918,9.65,127.51,127.47,3.9225]
[1726673403121,9.65,127.5,127.45,9.65]
[1726673403320,9.65,127.49,127.44,14.202]
[1726673403713,3.9222,127.49,127.47,9.65]
[1726673404120,3.9222,127.49,127.46,9.65]
[1726673404521,3.9219,127.5,127.46,9.65]
[1726673404724,3.90790429,127.5,127.44,4.552]
[1726673404919,9.65,127.49,127.44,14.202]
[1726673405421,9.65,127.49,127.44,4.552]
[1726673405622,9.65,127.48,127.44,1.5035]
[1726673406119,3.9228,127.47,127.44,5.4269]
[1726673408030,3.9232,127.46,127.44,1.5035]
[1726673408630,3.9232,127.46,127.43,9.65]
[1726673410032,3.9233,127.45,127.39,1.5461]
[1726673410228,3.9233,127.45,127.42,9.65]
[1726673411033,13.5731,127.46,127.43,3.9238]
[1726673411729,15.90395572,127.48,127.45,9.65]
[1726673411930,15.90395572,127.49,127.46,9.65]
[1726673412321,15.90395572,127.49,127.45,9.65]
[1726673412529,32.92215122,127.49,127.45,9.65]
[1726673412833,3.9228,127.47,127.45,9.65]
[1726673413033,15.89645729,127.48,127.44,13.5734]
[1726673413231,32.91282434,127.48,127.44,13.5734]
[1726673413432,3.9228,127.47,127.45,3.9232]
[1726673413731,9.65,127.48,127.43,9.65]
[1726673413924,3.9228,127.47,127.44,13.5735]
[1726673414130,13.5728,127.47,127.44,3.9235]
[1726673414731,3.9228,127.47,127.44,3.9235]
[1726673414926,3.9228,127.47,127.44,13.5735]
[1726673416036,13.5728,127.47,127.44,3.9235]
[1726673416234,29.46831932,127.47,127.44,3.9235]
[1726673416430,3.9225,127.48,127.46,9.65]
[1726673416839,3.9225,127.48,127.45,9.65]
[1726673417032,3.9225,127.48,127.45,13.5731]
[1726673417639,15.90073023,127.49,127.39,1.5461]
[1726673417834,15.90073023,127.49,127.42,9.65]
[1726673418040,9.65,127.47,127.42,9.65]
[1726673418335,15.90073023,127.48,127.46,9.65]
[1726673418536,15.9058478,127.49,127.46,9.65]
[1726673418936,80.0,127.5,127.46,9.65]
[1726673419134,3.9222,127.49,127.46,3.9228]
[1726673419330,32.93093643,127.49,127.45,9.65]
[1726673419536,25.55517447,127.48,127.44,9.65]
[1726673419739,9.65,127.48,127.44,9.65]
[1726673420135,42.57393075,127.48,127.44,9.65]
[1726673420330,9.65,127.48,127.44,9.65]
[1726673420734,25.54998023,127.48,127.44,9.65]
[1726673420936,9.65,127.48,127.45,3.9232]